bitfinex-derivatives/quotes_ETHF0:USTF0_20251009
["timestamp","ask_amount","ask_price","bid_price","bid_amount"]
[1760047497094,0.00257952,4362.8,4362.7,1.4102787]
[1760047497301,9.52e-06,4362.9,4362.8,1.17957]
[1760047497895,9.52e-06,4362.9,4362.8,41.97957]
[1760047498297,0.00234782,4362.9,4362.8,41.97957]
[1760047502399,0.77574782,4362.9,4362.8,0.62157]
[1760047502603,3.76977301,4362.9,4362.8,0.62157]
[1760047502804,0.00234782,4362.9,4362.8,1.17957]
[1760047503905,3.80760423,4362.9,4362.8,0.62157]
[1760047505904,3.80760423,4362.9,4362.8,0.41237]
[1760047509305,3.80760423,4362.9,4362.8,0.62767]
[1760047510316,3.80760423,4362.9,4362.8,0.97097]
[1760047513414,0.00234782,4362.9,4362.8,1.18787]
[1760047514012,0.79854782,4362.9,4362.8,1.18787]
[1760047514619,1.31165551,4362.9,4362.8,1.18787]
[1760047514820,1.31165551,4362.9,4362.8,0.7755]
[1760047515320,4.68920884,4362.9,4362.8,0.41237]
[1760047516018,1.20857,4362.8,4362.7,0.0016987]
[1760047516221,0.45,4362.3,4362.2,0.41242]
[1760047516416,1.30930769,4362.3,4362.2,1.18792]
[1760047516915,1.30930769,4362.3,4362.2,0.41242]
[1760047516916,4.25711392,4362.3,4362.2,0.41242]
[1760047517117,4.25711392,4362.3,4362.2,0.63015138]
[1760047517320,4.25711392,4362.3,4362.2,1.19035138]
[1760047517821,4.66952392,4362.3,4362.2,0.84705138]
[1760047518023,4.66952392,4362.3,4362.2,0.63015138]
[1760047519225,4.15641623,4362.3,4362.2,0.63015138]
[1760047519825,3.74400623,4362.3,4362.2,0.63015138]
[1760047520326,3.74400623,4362.3,4362.2,1.19035138]
[1760047521430,0.2179,4362.7,4362.6,0.4322]
[1760047521616,0.73078532,4362.7,4362.6,1.18789]
[1760047521822,1.30908532,4362.7,4362.6,0.41239]
[1760047522218,1.30908532,4362.7,4362.6,1.18789]
[1760047522422,1.09118532,4362.7,4362.6,1.18789]
[1760047522626,0.00234782,4362.9,4362.8,0.84457]
[1760047522826,0.79854782,4362.9,4362.8,1.18787]
[1760047523926,0.00234782,4362.9,4362.8,1.18787]
[1760047524433,0.79854782,4362.9,4362.8,1.18787]
[1760047527429,0.79854782,4362.9,4362.8,0.97097]
[1760047527723,0.79854782,4362.9,4362.8,0.41237]
[1760047528135,0.79854782,4362.9,4362.8,0.62767]
[1760047528832,0.56644782,4362.9,4362.8,1.18787]
[1760047529231,0.79854782,4362.9,4362.8,1.18787]
[1760047530229,0.00234782,4362.9,4362.8,1.18787]
[1760047531734,0.56644782,4362.9,4362.8,1.18787]
[1760047532439,0.79854782,4362.9,4362.8,1.18787]
[1760047533030,0.22024782,4362.9,4362.8,1.18787]
[1760047533237,0.79854782,4362.9,4362.8,1.18787]
[1760047535029,0.22024782,4362.9,4362.8,1.18787]
[1760047535234,0.00234782,4362.9,4362.8,1.18787]
[1760047536438,0.54064782,4362.9,4362.8,1.18787]
[1760047536737,0.76924782,4362.9,4362.8,1.18787]
[1760047539734,0.21964782,4362.9,4362.8,1.18787]
[1760047540141,0.00234782,4362.9,4362.8,1.18787]
[1760047541838,0.54064782,4362.9,4362.8,1.18787]
[1760047542539,0.76924782,4362.9,4362.8,1.18787]
[1760047545342,1.30551,4362.5,4362.4,0.2097]
[1760047545538,1.30551,4362.5,4362.3,0.32]
[1760047545539,1.17361,4362.3,4362.2,0.62455138]
[1760047546043,4.11306631,4362.3,4362.2,0.00243138]
[1760047546238,4.63134497,4362.3,4362.2,0.00243138]
[1760047546445,4.21893497,4362.3,4362.2,0.62455138]
[1760047547041,4.63134497,4362.3,4362.2,0.62455138]
[1760047547538,4.21893497,4362.3,4362.2,1.17435138]
[1760047550944,4.63134497,4362.3,4362.2,0.62455138]
[1760047551144,4.63134497,4362.3,4362.2,0.41485138]
[1760047553148,4.21893497,4362.3,4362.2,0.62455138]
[1760047553445,4.63134497,4362.3,4362.2,0.62455138]
[1760047554050,4.11306631,4362.3,4362.2,0.62455138]
[1760047554347,4.63078579,4362.3,4362.2,0.62455138]
[1760047554557,4.63078579,4362.3,4362.2,0.00243138]
[1760047554752,4.63078579,4362.3,4362.2,0.41485138]
[1760047558448,4.11306631,4362.3,4362.2,0.41485138]
[1760047558650,4.63064659,4362.3,4362.2,0.41485138]
[1760047559255,4.11306631,4362.3,4362.2,0.41485138]
[1760047559453,4.63063152,4362.3,4362.2,0.41485138]
[1760047559955,4.11306631,4362.3,4362.2,0.41485138]
[1760047560861,3.70065631,4362.3,4362.2,0.94455138]
[1760047561052,3.70065631,4362.3,4362.2,1.17435138]
[1760047562460,4.11306631,4362.3,4362.2,1.17435138]
[1760047563560,4.11306631,4362.3,4362.2,0.85435138]
[1760047563761,4.63068565,4362.3,4362.2,0.62455138]
[1760047564458,4.11306631,4362.3,4362.2,0.00243138]
[1760047564758,3.70065631,4362.3,4362.2,0.41485138]
[1760047564962,3.70065631,4362.3,4362.2,1.17435138]
[1760047565150,4.11306631,4362.3,4362.2,1.17435138]
[1760047565960,4.11306631,4362.3,4362.2,0.41485138]
[1760047568064,4.11306631,4362.3,4362.2,0.00243138]
[1760047568270,4.63090724,4362.3,4362.2,0.00243138]
[1760047574874,0.7733,4361.6,4361.5,0.41249]
[1760047575774,0.7733,4361.6,4361.5,0.41420369]
[1760047576572,0.7733,4361.6,4361.5,1.20270369]
[1760047578081,0.7733,4361.6,4361.5,1.33290369]
[1760047578280,0.5615,4361.6,4361.5,1.33290369]
[1760047578578,0.2139,4361.6,4361.5,1.33290369]
[1760047579981,0.7733,4361.8,4361.7,0.41247]
[1760047580281,1.29204738,4361.8,4361.7,0.41247]
[1760047582780,1.29204738,4361.8,4361.7,0.64207]
[1760047584782,1.70450738,4361.8,4361.7,0.41247]
[1760047584981,4.24730494,4361.8,4361.7,0.41247]
[1760047586483,4.24730494,4361.8,4361.7,0.97197]
[1760047586684,4.24730494,4361.8,4361.7,1.20097]
[1760047586881,0.3476,4362.1,4361.7,1.20097]
[1760047587081,0.4257,4362.5,4362.1,1.03109]
[1760047587280,0.77564782,4362.9,4362.8,1.20087]
[1760047587487,1.29418308,4362.9,4362.8,1.20087]
[1760047587882,4.24337382,4362.9,4362.8,1.20087]
[1760047589882,3.47007382,4362.9,4362.8,1.20087]
[1760047590188,3.51303856,4362.9,4362.8,1.20087]
[1760047591786,2.95153856,4362.9,4362.8,1.20087]
[1760047591990,0.00234782,4362.9,4362.8,1.20087]
[1760047592184,0.21624782,4362.9,4362.8,1.20087]
[1760047592380,0.56384782,4362.9,4362.8,1.20087]
[1760047593292,0.00234782,4362.9,4362.8,1.20087]
[1760047595092,0.77564782,4362.9,4362.8,1.20087]
[1760047597190,0.56384782,4362.9,4362.8,1.20087]
[1760047597792,0.00234782,4362.9,4362.8,1.20087]
[1760047604291,0.00234782,4362.9,4362.8,42.22987]
[1760047607893,0.34824782,4362.9,4362.8,42.22987]
[1760047612391,0.00234782,4362.9,4362.8,42.22987]
[1760047617193,0.4417,4364.0,4363.9,0.83946]
[1760047617494,0.95972098,4364.0,4363.9,0.83946]
[1760047617694,1.30562098,4364.0,4363.9,1.18156]
[1760047617898,1.85467098,4364.0,4363.9,1.18156]
[1760047618099,1.85758506,4364.0,4363.9,1.18156]
[1760047618297,1.44533506,4364.0,4363.9,1.18156]
[1760047619703,0.00291408,4364.0,4363.9,6.41056]
[1760047620102,4.08e-06,4364.0,4363.9,47.21056]
[1760047620295,0.5648,4365.4,4365.3,1.18143]
[1760047620601,0.7876,4365.4,4365.3,1.18143]
[1760047620894,3.82665594,4365.4,4365.3,0.5565]
[1760047621093,0.41213,4365.3,4365.0,0.75425]
[1760047621296,0.7876,4365.2,4365.1,0.96704]
[1760047621505,0.7876,4365.2,4365.1,0.7693]
[1760047626597,0.00178599,4365.3,4365.2,1.18044]
[1760047626802,0.53218599,4365.3,4365.2,1.18044]
[1760047628905,0.00178599,4365.3,4365.2,1.18044]
[1760047629301,0.00178599,4365.3,4365.2,1.40944]
[1760047631604,0.53218599,4365.3,4365.2,1.40944]
[1760047631902,0.2141,4366.8,4366.7,0.9703]
[1760047632101,0.752,4366.8,4366.7,0.6268]
[1760047632304,3.70522743,4366.8,4366.7,1.1803]
[1760047632806,3.70756954,4366.8,4366.7,1.1803]
[1760047633005,2.95556954,4366.8,4366.7,1.1803]
[1760047633210,3.70756954,4366.8,4366.7,1.1803]
[1760047633706,3.70756954,4366.8,4366.2,41.1435]
[1760047634005,0.752,4366.4,4366.0,0.229]
[1760047634511,0.5304,4366.0,4365.9,41.55557]
[1760047634911,0.752,4366.0,4365.9,1.18037]
[1760047635805,0.8898,4366.0,4365.9,1.18037]
[1760047636811,0.8898,4366.0,4365.9,0.83687]
[1760047639323,0.752,4365.2,4365.1,1.18045]
[1760047639522,0.752,4365.2,4365.0,0.00273961]
[1760047639712,0.752,4364.5,4364.4,0.97052]
[1760047639918,0.8898,4364.5,4364.4,0.62702]
[1760047640423,0.8898,4364.5,4364.4,0.41222]
[1760047640724,0.752,4364.3,4364.2,0.62703]
[1760047640922,0.752,4364.3,4364.2,0.62985453]
[1760047641922,8.42625701,4364.3,4363.2,0.3435]
[1760047642218,0.2141,4363.3,4363.2,1.40963]
[1760047643120,0.21603319,4363.3,4363.2,1.4114177]
[1760047644417,0.00193319,4363.3,4363.2,1.4114177]
[1760047649322,0.1788,4364.5,4364.4,0.62702]
[1760047649323,0.5735,4364.5,4364.4,0.62702]
[1760047649625,0.4357,4364.5,4364.4,1.18052]
[1760047649828,3.7122818,4364.5,4364.4,1.18052]
[1760047650030,0.752,4364.5,4364.4,1.18052]
[1760047650330,0.75455075,4364.5,4364.4,1.18052]
[1760047650622,0.00255075,4364.5,4364.4,1.18052]
[1760047650823,0.00255075,4364.5,4364.4,1.40952]
[1760047651424,0.00255075,4364.5,4364.4,6.40952]
[1760047651629,0.00165941,4364.5,4364.4,6.40952]
[1760047652433,0.00165941,4364.5,4364.4,47.20952]
[1760047653933,0.752,4365.9,4365.8,1.18038]
[1760047654331,3.78180881,4365.9,4365.8,1.18038]
[1760047654935,3.7841061,4365.9,4365.8,1.18038]
[1760047655233,3.7841061,4365.9,4365.8,0.83688]
[1760047655428,3.7841061,4365.9,4365.8,0.62688]
[1760047656334,3.7841061,4365.9,4365.8,1.18808]
[1760047658333,3.7841061,4365.9,4365.8,0.776]
[1760047658529,1.16608,4365.8,4365.7,0.41209]
[1760047658831,3.76364317,4365.8,4365.7,0.41209]
[1760047659030,3.76364317,4365.8,4365.7,1.19339]
[1760047660831,3.76364317,4365.8,4365.7,0.63219]
[1760047661937,3.76364317,4365.8,4365.7,0.97929]
[1760047663027,3.76364317,4365.8,4365.7,0.41209]
[1760047664037,4.17572317,4365.8,4365.7,0.41209]
[1760047664636,3.76364317,4365.8,4365.7,0.97929]
[1760047664832,4.17572317,4365.8,4365.7,0.97929]
[1760047665431,4.17572317,4365.8,4365.7,0.41209]
[1760047667331,4.17572317,4365.8,4365.7,0.63379]
[1760047668031,4.17572317,4365.8,4365.7,0.41209]
[1760047668226,3.76364317,4365.8,4365.7,0.96499]
[1760047668433,3.76364317,4365.8,4365.7,1.19599]
[1760047673737,3.00964317,4365.8,4365.7,1.19599]
[1760047674241,3.22074317,4365.8,4365.7,1.19599]
[1760047674540,3.54544317,4365.8,4365.7,1.19599]
[1760047675436,0.00229729,4365.9,4365.8,0.41208]
[1760047675642,0.00229729,4365.9,4365.8,1.19598]
[1760047675943,0.00229729,4365.9,4365.8,41.99598]
[1760047677942,7.29e-06,4365.9,4365.8,46.99598]
[1760047679844,7.29e-06,4365.9,4365.8,47.22498]
[1760047680039,0.2111,4367.4,4367.3,0.41194]
[1760047680239,0.41195,4367.3,4367.1,0.3312]
[1760047680436,1.27237105,4367.2,4367.1,0.96486]
[1760047680833,1.27237105,4367.2,4367.1,0.41196]
[1760047681042,1.27412163,4367.2,4367.1,0.41462119]
[1760047681542,1.27412163,4367.2,4367.1,0.63632119]
[1760047681741,1.27412163,4367.2,4367.1,0.96752119]
[1760047681933,4.69020717,4367.2,4367.1,0.00266119]
[1760047682345,4.27825717,4367.2,4367.1,0.41462119]
[1760047682643,4.69020717,4367.2,4367.1,0.41462119]
[1760047683240,4.27825717,4367.2,4367.1,0.41462119]
[1760047683640,4.69020717,4367.2,4367.1,0.41462119]
[1760047684247,4.17703612,4367.2,4367.1,0.41462119]
[1760047684433,4.68971103,4367.2,4367.1,0.41462119]
[1760047686448,4.17703612,4367.2,4367.1,0.41462119]
[1760047687441,4.68951564,4367.2,4367.1,0.00266119]
[1760047690346,4.27756564,4367.2,4367.1,0.00266119]
[1760047690549,0.55415058,4367.2,4367.1,1.19082119]
[1760047690749,0.00175058,4367.2,4367.1,6.19082119]
[1760047691448,0.00175058,4367.2,4367.1,46.99082119]
[1760047692251,0.32435058,4367.2,4367.1,41.99082119]
[1760047692444,4.18198561,4367.2,4367.1,0.00266119]
[1760047692750,4.18198561,4367.2,4367.1,0.41462119]
[1760047693152,3.77003561,4367.2,4367.1,0.41462119]
[1760047693948,4.18198561,4367.2,4367.1,0.41462119]
[1760047694654,4.41098561,4367.2,4367.1,0.00266119]
[1760047695857,4.41098561,4367.2,4367.1,0.41462119]
[1760047697953,9.9235157,4367.2,4367.1,0.00266119]
[1760047699852,9.6945157,4367.2,4367.1,0.00266119]
[1760047700055,4.5115657,4367.2,4367.1,1.19082119]
[1760047700656,4.9235157,4367.2,4367.1,0.00266119]
[1760047700850,4.9235157,4367.2,4367.1,0.41462119]
[1760047709054,4.4734157,4367.2,4367.1,0.63782119]
[1760047709356,3.54893561,4367.2,4367.1,1.19082119]
[1760047709660,0.4729,4367.9,4367.8,0.9606]
[1760047709852,0.7019,4367.9,4367.8,0.9606]
[1760047710053,4.16275493,4367.9,4367.8,0.4119]
[1760047710452,4.16275493,4367.9,4367.7,0.4119]
[1760047710753,0.86285,4367.2,4367.1,0.41462119]
[1760047710958,1.60909006,4367.2,4367.1,0.41462119]
[1760047711159,4.65006755,4367.2,4367.1,0.41462119]
[1760047711556,4.97266755,4367.2,4367.1,0.41462119]
[1760047712861,4.56071755,4367.2,4367.1,0.41462119]
[1760047713555,4.56071755,4367.2,4367.1,0.74012119]
[1760047714060,4.56071755,4367.2,4367.1,0.41462119]
[1760047715165,4.97266755,4367.2,4367.1,0.41462119]
[1760047715359,4.56071755,4367.2,4367.1,0.41462119]
[1760047716362,4.56071755,4367.2,4367.1,0.96662119]
[1760047716965,4.56071755,4367.2,4367.1,0.74302119]
[1760047717160,4.56071755,4367.2,4367.1,0.41462119]
[1760047720666,4.97266755,4367.2,4367.1,0.41462119]
[1760047721462,4.56071755,4367.2,4367.1,0.96662119]
[1760047721866,4.56071755,4367.2,4367.1,0.41462119]
[1760047723561,4.56071755,4367.2,4367.1,0.74302119]
[1760047723761,4.56071755,4367.2,4367.1,0.96662119]
[1760047726769,4.56071755,4367.2,4367.1,0.41462119]
[1760047728168,4.97266755,4367.2,4367.1,0.41462119]
[1760047730771,4.97266755,4367.2,4367.1,0.00266119]
[1760047730978,0.4432,4366.3,4366.2,0.3196]
[1760047731178,0.7831,4366.2,4366.1,0.41206]
[1760047731676,3.71651505,4366.2,4366.1,0.73166]
[1760047731982,3.71651505,4366.2,4366.1,0.7341797]
[1760047732175,3.71651505,4366.2,4366.1,0.4145797]
[1760047732779,3.71651505,4366.2,4366.1,0.7341797]
[1760047735282,3.71651505,4366.2,4366.1,0.4145797]
[1760047735479,4.23282781,4366.2,4366.1,0.4145797]
[1760047736073,4.23282781,4366.2,4366.1,0.7341797]
[1760047738086,4.23282781,4366.2,4366.1,0.9528797]
[1760047739181,3.71651505,4366.2,4366.1,0.9528797]
[1760047739685,3.94551505,4366.2,4366.1,1.1685797]
[1760047740086,2.93341505,4366.2,4366.1,1.1685797]
[1760047740580,3.39420521,4366.4,4366.3,1.16604]
[1760047740785,0.97052718,4366.4,4366.3,1.16604]
[1760047740984,3.16880521,4366.4,4366.3,1.16604]
[1760047741787,2.93980521,4366.4,4366.3,1.16604]
[1760047741978,0.3399,4367.1,4367.0,0.54167]
[1760047742183,1.52820075,4367.1,4367.0,1.29567]
[1760047742589,1.18830075,4367.1,4367.0,1.29567]
[1760047742790,3.62782539,4367.1,4367.0,1.29567]
[1760047743592,2.95562539,4367.1,4367.0,1.29567]
[1760047744789,0.229,4367.4,4367.3,0.41194]
[1760047744989,0.97038149,4367.4,4367.3,0.84634]
[1760047745189,0.97038149,4367.4,4367.3,1.16594]
[1760047745989,4.53454825,4367.4,4367.3,1.16594]
[1760047747488,4.53454825,4367.4,4367.3,0.41194]
[1760047748192,4.53454825,4367.4,4367.3,0.98164]
[1760047748785,0.43660863,4367.9,4367.3,0.98164]
[1760047748786,0.02470863,4367.9,4367.8,0.4119]
[1760047748985,0.02470863,4367.9,4367.8,1.2134]
[1760047749285,0.23930863,4367.9,4367.8,1.2134]
[1760047749691,0.02470863,4367.9,4367.8,1.2134]
[1760047752788,0.44970863,4367.9,4367.8,1.2134]
[1760047753191,3.4125727,4367.9,4367.8,1.2134]
[1760047753491,3.6201727,4367.9,4367.8,1.2134]
[1760047753794,3.4125727,4367.9,4367.8,1.2134]
[1760047770500,2.9875727,4367.9,4367.8,1.2134]
[1760047774500,3.2021727,4367.9,4367.8,1.2134]
[1760047776502,3.2021727,4367.9,4367.8,42.0134]
[1760047777104,2.9875727,4367.9,4367.8,42.0134]
[1760047777499,0.02470863,4367.9,4367.8,42.0134]
[1760047780500,0.02470863,4367.9,4367.8,42.2424]
[1760047782905,0.02470863,4367.9,4367.8,1.2134]
[1760047783103,0.4345,4367.8,4367.7,0.41191]
[1760047783311,1.06222,4367.5,4367.4,0.41193]
[1760047783608,1.06223,4367.4,4367.3,0.329]
[1760047783803,1.58128728,4367.4,4367.3,0.329]
[1760047784301,0.6503,4367.2,4366.6,1.03003]
[1760047784509,0.6503,4366.8,4366.7,0.329]
[1760047784703,0.6503,4366.8,4366.7,0.5534]
[1760047785107,0.4433,4366.8,4366.7,0.9654]
[1760047787914,0.6509,4366.8,4366.7,0.9654]
[1760047789915,3.67800068,4366.8,4366.7,0.741]
[1760047790103,0.86931,4366.6,4366.5,0.41202]
[1760047790413,0.86931,4366.6,4366.1,0.0025197]
[1760047790414,0.6649,4366.2,4366.1,0.5349197]
[1760047790611,0.4573,4366.2,4366.1,0.9469797]
[1760047791207,3.38211551,4366.2,4366.1,0.9469797]
[1760047791406,3.38211551,4366.2,4366.1,1.1748797]
[1760047793218,3.79416551,4366.2,4366.1,1.1748797]
[1760047794116,3.38211551,4366.2,4366.1,1.1748797]
[1760047798118,0.2302,4366.9,4366.8,1.17228]
[1760047799222,3.22658985,4366.9,4366.8,1.17228]
[1760047799419,3.45368985,4366.9,4366.8,1.17228]
[1760047800322,3.22658985,4366.9,4366.8,1.17228]
[1760047800917,2.99638985,4366.9,4366.8,1.17228]
[1760047801519,0.41195,4367.3,4367.2,0.41195]
[1760047801716,0.64215,4367.3,4367.2,1.17225]
[1760047801921,3.8080518,4367.3,4367.2,1.17225]
[1760047802517,0.2076,4367.2,4366.8,0.41199]
[1760047802723,0.6649,4366.9,4366.8,0.73379]
[1760047802914,0.4573,4366.9,4366.8,0.94439]
[1760047803520,0.4573,4366.9,4366.8,1.17229]
[1760047803814,3.49109236,4366.9,4366.8,1.17229]
[1760047812030,3.69829236,4366.9,4366.8,1.17229]
[1760047812425,3.49109236,4366.9,4366.8,1.17229]
[1760047814432,3.49109236,4366.9,4366.8,41.97229]
[1760047815827,3.49109236,4366.9,4366.8,1.17229]
[1760047817337,3.69829236,4366.9,4366.8,1.17229]
[1760047823443,0.6667,4367.7,4367.6,0.95021]
[1760047823634,0.97805192,4367.7,4367.6,1.16891]
[1760047824646,3.97964258,4367.7,4367.6,1.16891]
[1760047825547,3.74834258,4367.7,4367.6,1.16891]
[1760047829143,3.97964258,4367.7,4367.6,1.16891]
[1760047829347,0.6667,4367.6,4367.5,0.41192]
[1760047829849,4.20660526,4367.6,4367.5,0.41192]
[1760047830545,9.20660526,4367.6,4367.5,0.41192]
[1760047831145,0.2282,4367.4,4367.3,0.41194]
[1760047831342,0.8957,4367.4,4367.3,0.41194]
[1760047831546,1.41438179,4367.4,4367.3,0.41194]
[1760047831842,1.41438179,4367.4,4367.1,0.41195]
[1760047832043,0.6667,4366.8,4366.7,0.3215]
[1760047832248,0.6667,4366.8,4366.7,0.7335]
[1760047832944,3.62121114,4366.8,4366.7,0.412]
[1760047833251,3.62121114,4366.8,4366.7,0.7335]
[1760047833446,3.62121114,4366.8,4366.7,0.9503]
[1760047834555,4.1399309,4366.8,4366.7,0.9503]
[1760047835547,3.62121114,4366.8,4366.7,0.9503]
[1760047838253,3.62121114,4366.8,4366.7,0.412]
[1760047838451,4.55188423,4366.8,4366.7,0.412]
[1760047838651,4.13989423,4366.8,4366.7,0.412]
[1760047843060,4.13989423,4366.8,4366.7,0.7562]
[1760047843262,3.47319423,4366.8,4366.7,1.1908]
[1760047843452,1.25725904,4367.9,4367.4,1.02983]
[1760047843658,0.73986906,4367.8,4367.7,0.84651]
[1760047843859,0.95466906,4367.8,4367.7,1.19071]
[1760047844862,3.98946459,4367.8,4367.7,1.19071]
[1760047845866,4.19656459,4367.8,4367.7,0.98161]
[1760047846066,4.19656459,4367.8,4367.7,0.75611]
[1760047846365,4.19656459,4367.8,4367.7,0.41191]
[1760047846566,4.19656459,4367.8,4367.7,0.95891]
[1760047846766,4.42556459,4367.8,4367.7,0.95891]
[1760047847965,4.42556459,4367.8,4367.7,0.74811]
[1760047848970,0.6418,4367.2,4367.1,0.3362]
[1760047849169,0.6418,4367.2,4367.1,0.41196]
[1760047849371,3.68018669,4367.2,4367.1,0.41196]
[1760047849571,3.70208669,4367.2,4366.6,0.3362]
[1760047849768,0.6418,4366.6,4366.5,0.74982]
[1760047850170,0.4347,4366.6,4366.5,0.96342]
[1760047850373,0.4347,4366.6,4366.5,1.29962]
[1760047850670,3.47048995,4366.6,4366.5,1.29962]
[1760047852173,3.03578995,4366.6,4366.5,1.29962]
[1760047852768,1.28276,4367.1,4367.0,0.74817]
[1760047852968,1.80211413,4367.1,4367.0,0.74817]
[1760047853972,4.84084502,4367.1,4367.0,0.74817]
[1760047855273,0.2184,4366.6,4366.5,0.53902]
[1760047855476,0.4347,4366.6,4366.5,0.74982]
[1760047855971,0.4347,4366.6,4366.5,1.08602]
[1760047856165,0.6418,4366.6,4366.5,1.08602]
[1760047856369,3.63853714,4366.6,4366.5,1.08602]
[1760047856570,3.43143714,4366.6,4366.5,1.08602]
[1760047857776,3.63853714,4366.6,4366.5,0.74822]
[1760047858766,3.43143714,4366.6,4366.5,0.95902]
[1760047859076,3.43143714,4366.6,4366.5,1.30712]
[1760047860779,3.63853714,4366.6,4366.5,1.09352]
[1760047861579,3.43143714,4366.6,4366.5,1.09352]
[1760047861877,3.43143714,4366.6,4366.5,1.30712]
[1760047864275,3.63853714,4366.6,4366.5,0.88272]
[1760047864876,3.63853714,4366.6,4366.5,1.09352]
[1760047865177,3.43143714,4366.6,4366.5,1.09352]
[1760047867285,3.43143714,4366.6,4366.5,1.30712]
[1760047868184,3.63863714,4366.6,4366.5,1.30712]
[1760047868483,3.43143714,4366.6,4366.5,1.30712]
[1760047869579,3.63863714,4366.6,4366.5,1.30712]
[1760047869779,3.63863714,4366.6,4366.5,0.41202]
[1760047870179,3.63863714,4366.6,4366.5,0.73412]
[1760047870887,3.63863714,4366.6,4366.5,0.41202]
[1760047871083,4.15823518,4366.6,4366.5,0.41202]
[1760047871386,9.15823518,4366.6,4366.5,0.41202]
[1760047872087,0.1117,4366.5,4366.1,0.0025197]
[1760047872286,0.653,4366.2,4366.1,0.4145797]
[1760047872485,0.882,4366.2,4366.1,0.4145797]
[1760047872691,3.81273917,4366.2,4366.1,0.4145797]
[1760047874490,4.33215712,4366.2,4366.1,0.4145797]
[1760047875292,4.74420712,4366.2,4366.1,0.4145797]
[1760047875587,0.2072,4365.3,4365.2,0.41214]
[1760047875788,0.653,4365.3,4365.2,0.73424]
[1760047876187,0.653,4365.3,4365.2,0.95014]
[1760047876587,0.653,4365.3,4365.2,0.95209015]
[1760047877094,3.64050526,4365.3,4365.2,0.95209015]
[1760047877885,3.64050526,4365.3,4365.2,0.73619015]
[1760047879392,3.64050526,4365.3,4365.2,0.41409015]
[1760047880888,3.86950526,4365.3,4365.2,0.41409015]
[1760047881089,4.28163526,4365.3,4365.2,0.25001243]
[1760047881285,3.86950526,4365.3,4365.2,0.25001243]
[1760047884488,4.28163526,4365.3,4365.2,0.25001243]
[1760047884693,4.28163526,4365.3,4365.2,0.41409015]
[1760047885090,4.28163526,4365.3,4365.2,0.00195015]
[1760047885392,3.86950526,4365.3,4365.2,0.41409015]
[1760047885592,4.28163526,4365.3,4365.2,0.41409015]
[1760047887497,4.28163526,4365.3,4365.2,0.00195015]
[1760047887997,4.28163526,4365.3,4365.2,0.41409015]
[1760047889093,3.86950526,4365.3,4365.2,0.41409015]
[1760047889992,4.28163526,4365.3,4365.2,0.41409015]
[1760047891100,4.28163526,4365.3,4365.2,0.00195015]
[1760047892302,4.28163526,4365.3,4365.2,0.41409015]
[1760047895191,4.28163526,4365.3,4365.2,0.00195015]
[1760047895397,0.6511,4364.3,4364.2,0.73434]
[1760047896004,3.68807136,4364.3,4364.2,0.73434]
[1760047896310,3.69013948,4364.3,4364.2,0.7364895]
[1760047897204,3.69013948,4364.3,4364.2,0.4143895]
[1760047897406,3.69013948,4364.3,4364.2,0.7614895]
[1760047900506,3.69013948,4364.3,4364.2,0.4143895]
[1760047900804,3.69013948,4364.3,4364.2,0.7614895]
[1760047902003,3.91913948,4364.3,4364.2,0.7614895]
[1760047904808,3.91913948,4364.3,4364.2,0.4143895]
[1760047905211,3.91913948,4364.3,4364.2,0.7614895]
[1760047906710,3.91913948,4364.3,4364.2,0.4143895]
[1760047907714,3.91913948,4364.3,4364.2,0.7458895]
[1760047911016,3.91913948,4364.3,4364.2,0.4143895]
[1760047911216,4.33136948,4364.3,4364.2,0.4143895]
[1760047911718,4.33136948,4364.3,4364.2,0.0021495]
[1760047911918,4.33136948,4364.3,4364.2,0.4143895]
[1760047914622,4.33136948,4364.3,4364.2,0.0021495]
[1760047915725,1.05979,4363.6,4363.5,1.63551101]
[1760047916018,1.05982,4363.3,4363.2,1.63551101]
[1760047916324,1.05982,4363.3,4362.8,0.2104]
[1760047916325,0.6475,4362.9,4362.8,0.2104]
[1760047916526,0.8765,4362.9,4362.8,0.2104]
[1760047916719,0.8765,4362.9,4362.8,1.84976673]
[1760047917022,0.8765,4362.9,4362.8,2.18126673]
[1760047918821,3.01509911,4363.6,4362.8,2.18126673]
[1760047918822,0.2288,4363.3,4363.2,0.2104]
[1760047919027,0.2288,4363.3,4363.2,1.17263]
[1760047919221,0.6475,4363.3,4363.2,0.7603]
[1760047919822,0.4441,4363.3,4363.2,0.7603]
[1760047920326,3.43894633,4363.3,4363.2,0.7603]
[1760047920723,0.41233,4363.2,4363.0,0.1307]
[1760047920927,0.4441,4363.0,4362.9,0.3315]
[1760047921127,0.6475,4363.0,4362.9,0.3315]
[1760047921628,0.6475,4363.0,4362.9,0.5419]
[1760047921927,0.4441,4363.0,4362.9,0.7603]
[1760047923122,0.4441,4363.0,4362.9,1.17266]
[1760047926231,3.44804217,4363.0,4362.9,1.17266]
[1760047928028,3.65144217,4363.0,4362.9,0.74386]
[1760047931233,4.06379217,4363.0,4362.8,0.41466534]
[1760047931429,0.629,4362.9,4362.8,0.41466534]
[1760047932030,3.6754785,4362.9,4362.8,0.73776534]
[1760047933130,3.6754785,4362.9,4362.8,0.41466534]
[1760047933335,4.0878385,4362.9,4362.8,0.00229534]
[1760047934232,3.6754785,4362.9,4362.8,0.73776534]
[1760047934431,3.6754785,4362.9,4362.8,0.95586534]
[1760047935331,4.0878385,4362.9,4362.8,0.32539534]
[1760047935730,4.0878385,4362.9,4362.8,0.00229534]
[1760047937133,4.0878385,4362.9,4362.8,0.32539534]
[1760047937329,3.6754785,4362.9,4362.8,0.73776534]
[1760047938332,4.0878385,4362.9,4362.8,0.32539534]
[1760047938634,4.0878385,4362.9,4362.8,0.00229534]
[1760047940130,4.61596024,4362.9,4362.8,0.00229534]
[1760047942034,4.61596024,4362.9,4361.5,1.16193]
[1760047942035,0.4256,4361.8,4361.7,0.3231]
[1760047942336,0.6267,4361.8,4361.7,0.3231]
[1760047942635,0.6267,4361.8,4361.7,41.1231]
[1760047943134,0.6267,4361.8,4361.7,41.53741373]
[1760047943940,3.61865337,4361.8,4361.7,0.73741373]
[1760047944638,3.61865337,4361.8,4361.7,0.41431373]
[1760047945632,4.03111337,4361.8,4361.7,0.00184373]
[1760047945835,4.03111337,4361.8,4361.7,0.41431373]
[1760047946035,3.61865337,4361.8,4361.7,0.41431373]
[1760047947234,4.03111337,4361.8,4361.7,0.41431373]